[Event "Titled Tuesday Blitz June 14 Early 2022"]
[White "Perez Gormaz, Matias"]
[Black "Lopez Gracia, Fernando"]
[WhiteFideId "3406342"]
[BlackFideId "2207184"]
[WhiteElo "2341"]
[BlackElo "2466"]
[Result "1-0"]
[Round "11"]
[TimeControl "180+1"]
[Date "2022.06.14"]
[WhiteClock "0:02:17"]
[BlackClock "0:02:31"]

1. e4 {[%clk 0:03:00]}  e5 {[%clk 0:02:59]} 2. Nf3 {[%clk 0:03:01]}  Nc6 {[%clk 0:02:59]} 3. Bb5 {[%clk 0:03:02]}  a6 {[%clk 0:02:59]} 4. Ba4 {[%clk 0:03:02]}  Nf6 {[%clk 0:03:00]} 5. d3 {[%clk 0:03:03]}  Bc5 {[%clk 0:03:00]} 6. c3 {[%clk 0:03:02]}  b5 {[%clk 0:03:00]} 7. Bc2 {[%clk 0:03:01]}  d6 {[%clk 0:03:01]} 8. Bg5 {[%clk 0:03:00]}  h6 {[%clk 0:03:01]} 9. Bh4 {[%clk 0:03:00]}  O-O {[%clk 0:03:00]} 10. a4 {[%clk 0:03:01]}  Rb8 {[%clk 0:02:58]} 11. axb5 {[%clk 0:03:01]}  axb5 {[%clk 0:02:59]} 12. O-O {[%clk 0:03:00]}  g5 {[%clk 0:02:59]} 13. Bg3 {[%clk 0:02:58]}  Kg7 {[%clk 0:02:56]} 14. Nbd2 {[%clk 0:02:49]}  Nh7 {[%clk 0:02:50]} 15. Re1 {[%clk 0:02:43]}  f5 {[%clk 0:02:43]} 16. exf5 {[%clk 0:02:42]}  Bxf5 {[%clk 0:02:44]} 17. d4 {[%clk 0:02:35]}  Bxc2 {[%clk 0:02:40]} 18. Qxc2 {[%clk 0:02:34]}  exd4 {[%clk 0:02:41]} 19. Ne4 {[%clk 0:02:28]}  Bb6 {[%clk 0:02:39]} 20. cxd4 {[%clk 0:02:19]}  Nf6 {[%clk 0:02:31]} 21. Qxc6 {[%clk 0:02:17]} 1-0


[Site "https://www.chess.com"]

[Event "Titled Tuesday Blitz June 14 Early 2022"]
[White "Rodchenkov, Sergey D."]
[Black "Costachi, Mihnea"]
[WhiteFideId "4168712"]
[BlackFideId "1217518"]
[WhiteElo "2293"]
[BlackElo "2476"]
[Result "0-1"]
[Round "11"]
[TimeControl "180+1"]
[Date "2022.06.14"]
[WhiteClock "0:00:02"]
[BlackClock "0:01:32"]

1. e4 {[%clk 0:03:00]}  c5 {[%clk 0:02:59]} 2. Nf3 {[%clk 0:03:00]}  Nc6 {[%clk 0:02:58]} 3. Bb5 {[%clk 0:03:00]}  g6 {[%clk 0:02:58]} 4. O-O {[%clk 0:02:59]}  Bg7 {[%clk 0:02:57]} 5. Bxc6 {[%clk 0:02:58]}  dxc6 {[%clk 0:02:57]} 6. d3 {[%clk 0:02:58]}  Nf6 {[%clk 0:02:58]} 7. h3 {[%clk 0:02:51]}  O-O {[%clk 0:02:58]} 8. e5 {[%clk 0:02:49]}  Nd5 {[%clk 0:02:57]} 9. Nc3 {[%clk 0:02:49]}  Nxc3 {[%clk 0:02:55]} 10. bxc3 {[%clk 0:02:50]}  c4 {[%clk 0:02:52]} 11. Bf4 {[%clk 0:02:19]}  Bf5 {[%clk 0:02:48]} 12. Nd4 {[%clk 0:02:13]}  Qd7 {[%clk 0:02:38]} 13. Re1 {[%clk 0:02:02]}  c5 {[%clk 0:02:32]} 14. Nxf5 {[%clk 0:02:01]}  Qxf5 {[%clk 0:02:32]} 15. Bh2 {[%clk 0:02:01]}  Rfd8 {[%clk 0:02:27]} 16. d4 {[%clk 0:01:56]}  cxd4 {[%clk 0:02:27]} 17. cxd4 {[%clk 0:01:57]}  c3 {[%clk 0:02:24]} 18. Rb1 {[%clk 0:01:52]}  b6 {[%clk 0:02:23]} 19. Rb3 {[%clk 0:01:49]}  Rac8 {[%clk 0:02:24]} 20. Re3 {[%clk 0:01:40]}  Rc4 {[%clk 0:02:24]} 21. Rd3 {[%clk 0:01:28]}  Qe4 {[%clk 0:02:20]} 22. f3 {[%clk 0:01:12]}  Qc6 {[%clk 0:02:14]} 23. d5 {[%clk 0:00:59]}  Qc8 {[%clk 0:02:05]} 24. Qe1 {[%clk 0:00:45]}  Qc5+ {[%clk 0:02:03]} 25. Kh1 {[%clk 0:00:26]}  Rxd5 {[%clk 0:02:02]} 26. Rbxc3 {[%clk 0:00:17]}  Rxd3 {[%clk 0:01:51]} 27. Rxd3 {[%clk 0:00:18]}  Rxc2 {[%clk 0:01:50]} 28. Rd8+ {[%clk 0:00:18]}  Bf8 {[%clk 0:01:51]} 29. Bg3 {[%clk 0:00:05]}  Rxa2 {[%clk 0:01:46]} 30. e6 {[%clk 0:00:03]}  f6 {[%clk 0:01:43]} 31. Bd6 {[%clk 0:00:02]}  Qg5 {[%clk 0:01:33]} 32. Bxe7 {[%clk 0:00:02]}  Qxg2# {[%clk 0:01:32]} 0-1


[Site "https://www.chess.com"]

[Event "Titled Tuesday Blitz June 14 Early 2022"]
[White "Sadhwani, Raunak"]
[Black "Durarbayli, Vasif"]
[WhiteFideId "35093487"]
[BlackFideId "13402935"]
[WhiteElo "2616"]
[BlackElo "2528"]
[Result "1-0"]
[Round "11"]
[TimeControl "180+1"]
[Date "2022.06.14"]
[WhiteClock "0:00:03"]
[BlackClock "0:00:02"]

1. e4 {[%clk 0:03:00]}  e5 {[%clk 0:03:00]} 2. Nf3 {[%clk 0:03:00]}  Nc6 {[%clk 0:03:00]} 3. Bb5 {[%clk 0:03:01]}  a6 {[%clk 0:03:00]} 4. Ba4 {[%clk 0:03:01]}  Nf6 {[%clk 0:03:00]} 5. d3 {[%clk 0:03:01]}  b5 {[%clk 0:03:01]} 6. Bb3 {[%clk 0:03:02]}  Bc5 {[%clk 0:03:01]} 7. Nc3 {[%clk 0:03:03]}  h6 {[%clk 0:03:00]} 8. Nd5 {[%clk 0:03:03]}  Rb8 {[%clk 0:03:00]} 9. c3 {[%clk 0:03:02]}  d6 {[%clk 0:02:44]} 10. h3 {[%clk 0:03:01]}  Nxd5 {[%clk 0:02:40]} 11. Bxd5 {[%clk 0:03:01]}  Ne7 {[%clk 0:02:40]} 12. Bb3 {[%clk 0:02:59]}  Bb6 {[%clk 0:02:39]} 13. a4 {[%clk 0:02:55]}  O-O {[%clk 0:02:37]} 14. d4 {[%clk 0:02:46]}  Bb7 {[%clk 0:02:16]} 15. Bc2 {[%clk 0:02:42]}  Ng6 {[%clk 0:02:14]} 16. a5 {[%clk 0:02:41]}  Ba7 {[%clk 0:02:13]} 17. O-O {[%clk 0:02:41]}  Qf6 {[%clk 0:02:07]} 18. Be3 {[%clk 0:02:38]}  Rbd8 {[%clk 0:02:03]} 19. Re1 {[%clk 0:02:30]}  Rfe8 {[%clk 0:01:53]} 20. Qc1 {[%clk 0:02:30]}  c5 {[%clk 0:01:47]} 21. d5 {[%clk 0:02:27]}  Bb8 {[%clk 0:01:42]} 22. Nh2 {[%clk 0:02:25]}  Bc8 {[%clk 0:01:41]} 23. b4 {[%clk 0:02:20]}  c4 {[%clk 0:01:40]} 24. Bd1 {[%clk 0:02:13]}  Nf4 {[%clk 0:01:34]} 25. Bxf4 {[%clk 0:02:06]}  exf4 {[%clk 0:01:32]} 26. Bg4 {[%clk 0:02:05]}  Ba7 {[%clk 0:01:24]} 27. Bxc8 {[%clk 0:02:02]}  Rxc8 {[%clk 0:01:25]} 28. Qc2 {[%clk 0:01:53]}  Re7 {[%clk 0:01:15]} 29. Re2 {[%clk 0:01:52]}  Rce8 {[%clk 0:01:15]} 30. Rae1 {[%clk 0:01:52]}  Qg6 {[%clk 0:01:13]} 31. Nf3 {[%clk 0:01:50]}  Qf6 {[%clk 0:00:53]} 32. Qd2 {[%clk 0:01:26]}  g5 {[%clk 0:00:50]} 33. e5 {[%clk 0:00:49]}  dxe5 {[%clk 0:00:46]} 34. d6 {[%clk 0:00:50]}  Rd7 {[%clk 0:00:35]} 35. Nxe5 {[%clk 0:00:37]}  Qxd6 {[%clk 0:00:16]} 36. Nxd7 {[%clk 0:00:22]}  Qxd2 {[%clk 0:00:13]} 37. Nf6+ {[%clk 0:00:22]}  Kh8 {[%clk 0:00:12]} 38. Nxe8 {[%clk 0:00:19]}  Qxc3 {[%clk 0:00:11]} 39. Nd6 {[%clk 0:00:20]}  Qxb4 {[%clk 0:00:06]} 40. Nxf7+ {[%clk 0:00:19]}  Kg7 {[%clk 0:00:07]} 41. Re7 {[%clk 0:00:18]}  Bc5 {[%clk 0:00:07]} 42. Nd6+ {[%clk 0:00:16]}  Kg6 {[%clk 0:00:07]} 43. R7e6+ {[%clk 0:00:15]}  Kg7 {[%clk 0:00:03]} 44. Re7+ {[%clk 0:00:08]}  Kg6 {[%clk 0:00:03]} 45. R1e6+ {[%clk 0:00:08]}  Kh5 {[%clk 0:00:04]} 46. Rh7 {[%clk 0:00:09]}  Bxf2+ {[%clk 0:00:02]} 47. Kxf2 {[%clk 0:00:07]}  Qd2+ {[%clk 0:00:02]} 48. Kg1 {[%clk 0:00:01]}  Qd4+ {[%clk 0:00:01]} 49. Kh2 {[%clk 0:00:02]}  g4 {[%clk 0:00:01]} 50. Rhxh6+ {[%clk 0:00:02]}  Kg5 {[%clk 0:00:02]} 51. Reg6# {[%clk 0:00:03]} 1-0


[Site "https://www.chess.com"]

[Event "Titled Tuesday Blitz June 14 Early 2022"]
[White "Samadov, Read"]
[Black "Csonka, Balazs"]
[WhiteFideId "13417444"]
[BlackFideId "742910"]
[WhiteElo "2084"]
[BlackElo "2404"]
[Result "1-0"]
[Round "11"]
[TimeControl "180+1"]
[Date "2022.06.14"]
[WhiteClock "0:00:29"]
[BlackClock "0:00:04"]

1. d4 {[%clk 0:03:00]}  e6 {[%clk 0:02:58]} 2. c4 {[%clk 0:03:00]}  d5 {[%clk 0:02:52]} 3. Nc3 {[%clk 0:03:00]}  Bb4 {[%clk 0:02:51]} 4. Nf3 {[%clk 0:02:59]}  Nf6 {[%clk 0:02:50]} 5. Bg5 {[%clk 0:02:59]}  dxc4 {[%clk 0:02:40]} 6. e4 {[%clk 0:02:50]}  h6 {[%clk 0:02:39]} 7. Bxf6 {[%clk 0:02:50]}  Qxf6 {[%clk 0:02:40]} 8. Bxc4 {[%clk 0:02:50]}  c5 {[%clk 0:02:38]} 9. e5 {[%clk 0:02:48]}  Qd8 {[%clk 0:02:37]} 10. O-O {[%clk 0:02:45]}  cxd4 {[%clk 0:02:30]} 11. Ne4 {[%clk 0:02:45]}  O-O {[%clk 0:02:28]} 12. Qe2 {[%clk 0:02:45]}  Be7 {[%clk 0:02:29]} 13. Rad1 {[%clk 0:02:42]}  Qc7 {[%clk 0:02:27]} 14. Bd3 {[%clk 0:02:14]}  Nd7 {[%clk 0:02:14]} 15. Rc1 {[%clk 0:02:12]}  Qa5 {[%clk 0:02:11]} 16. Ng3 {[%clk 0:02:09]}  Nc5 {[%clk 0:02:01]} 17. Bb1 {[%clk 0:02:04]}  Rd8 {[%clk 0:01:47]} 18. Rfd1 {[%clk 0:01:59]}  d3 {[%clk 0:01:43]} 19. Qe3 {[%clk 0:01:59]}  Qb6 {[%clk 0:01:28]} 20. a3 {[%clk 0:01:46]}  Na4 {[%clk 0:00:54]} 21. Qxb6 {[%clk 0:01:16]}  axb6 {[%clk 0:00:55]} 22. Rd2 {[%clk 0:01:17]}  Nxb2 {[%clk 0:00:54]} 23. Rxb2 {[%clk 0:01:00]}  Bxa3 {[%clk 0:00:55]} 24. Ra2 {[%clk 0:01:01]}  Bxc1 {[%clk 0:00:55]} 25. Rxa8 {[%clk 0:01:01]}  d2 {[%clk 0:00:56]} 26. Nxd2 {[%clk 0:01:01]}  Bxd2 {[%clk 0:00:57]} 27. Ne4 {[%clk 0:00:54]}  Bf4 {[%clk 0:00:10]} 28. Nd6 {[%clk 0:00:48]}  Bxe5 {[%clk 0:00:10]} 29. Rxc8 {[%clk 0:00:48]}  Rxc8 {[%clk 0:00:10]} 30. Nxc8 {[%clk 0:00:49]}  b5 {[%clk 0:00:07]} 31. Na7 {[%clk 0:00:47]}  b4 {[%clk 0:00:05]} 32. Nb5 {[%clk 0:00:47]}  Kf8 {[%clk 0:00:05]} 33. Kf1 {[%clk 0:00:47]}  Ke7 {[%clk 0:00:04]} 34. g3 {[%clk 0:00:47]}  g5 {[%clk 0:00:04]} 35. Ke2 {[%clk 0:00:47]}  f5 {[%clk 0:00:04]} 36. Kd3 {[%clk 0:00:47]}  h5 {[%clk 0:00:01]} 37. Kc4 {[%clk 0:00:47]}  h4 {[%clk 0:00:01]} 38. Kxb4 {[%clk 0:00:47]}  hxg3 {[%clk 0:00:02]} 39. hxg3 {[%clk 0:00:47]}  g4 {[%clk 0:00:02]} 40. Nc3 {[%clk 0:00:35]}  f4 {[%clk 0:00:03]} 41. Ne4 {[%clk 0:00:29]}  fxg3 {[%clk 0:00:02]} 42. fxg3 {[%clk 0:00:29]}  Kd7 {[%clk 0:00:02]} 43. Bd3 {[%clk 0:00:29]}  Ke7 {[%clk 0:00:03]} 44. Be2 {[%clk 0:00:29]}  Kd7 {[%clk 0:00:02]} 45. Bxg4 {[%clk 0:00:29]}  Ke7 {[%clk 0:00:03]} 46. Bf3 {[%clk 0:00:30]}  Bxg3 {[%clk 0:00:03]} 47. Nxg3 {[%clk 0:00:30]}  Kf6 {[%clk 0:00:04]} 48. Bxb7 {[%clk 0:00:29]}  Ke5 {[%clk 0:00:05]} 49. Kc5 {[%clk 0:00:29]}  Kf4 {[%clk 0:00:05]} 50. Ne4 {[%clk 0:00:30]}  e5 {[%clk 0:00:06]} 51. Kd5 {[%clk 0:00:30]}  Ke3 {[%clk 0:00:06]} 52. Kxe5 {[%clk 0:00:28]}  Kd3 {[%clk 0:00:07]} 53. Bd5 {[%clk 0:00:27]}  Ke3 {[%clk 0:00:08]} 54. Nc5 {[%clk 0:00:28]}  Kd2 {[%clk 0:00:07]} 55. Kd4 {[%clk 0:00:28]}  Ke2 {[%clk 0:00:08]} 56. Nd3 {[%clk 0:00:28]}  Kd2 {[%clk 0:00:07]} 57. Bf3 {[%clk 0:00:28]}  Kc2 {[%clk 0:00:07]} 58. Nc5 {[%clk 0:00:27]}  Kd2 {[%clk 0:00:07]} 59. Nb3+ {[%clk 0:00:28]}  Kc2 {[%clk 0:00:06]} 60. Kc4 {[%clk 0:00:28]}  Kb2 {[%clk 0:00:06]} 61. Bd1 {[%clk 0:00:28]}  Ka2 {[%clk 0:00:04]} 62. Kc3 {[%clk 0:00:27]}  Kb1 {[%clk 0:00:03]} 63. Bc2+ {[%clk 0:00:27]}  Ka2 {[%clk 0:00:03]} 64. Bd3 {[%clk 0:00:26]}  Ka3 {[%clk 0:00:03]} 65. Bb1 {[%clk 0:00:27]}  Ka4 {[%clk 0:00:03]} 66. Nd4 {[%clk 0:00:28]}  Ka5 {[%clk 0:00:03]} 67. Kc4 {[%clk 0:00:28]}  Kb6 {[%clk 0:00:03]} 68. Nb5 {[%clk 0:00:29]}  Kc6 {[%clk 0:00:03]} 69. Bf5 {[%clk 0:00:29]}  Kb6 {[%clk 0:00:03]} 70. Bd7 {[%clk 0:00:28]}  Ka5 {[%clk 0:00:03]} 71. Nc3 {[%clk 0:00:26]}  Kb6 {[%clk 0:00:03]} 72. Nd5+ {[%clk 0:00:26]}  Ka5 {[%clk 0:00:03]} 73. Kc5 {[%clk 0:00:26]}  Ka6 {[%clk 0:00:03]} 74. Kb4 {[%clk 0:00:27]}  Ka7 {[%clk 0:00:03]} 75. Ka5 {[%clk 0:00:27]}  Kb7 {[%clk 0:00:03]} 76. Kb5 {[%clk 0:00:27]}  Ka7 {[%clk 0:00:04]} 77. Bc8 {[%clk 0:00:27]}  Kb8 {[%clk 0:00:03]} 78. Ba6 {[%clk 0:00:27]}  Ka7 {[%clk 0:00:03]} 79. Ka5 {[%clk 0:00:28]}  Ka8 {[%clk 0:00:03]} 80. Kb6 {[%clk 0:00:28]}  Kb8 {[%clk 0:00:04]} 81. Nb4 {[%clk 0:00:28]}  Ka8 {[%clk 0:00:04]} 82. Bb7+ {[%clk 0:00:29]}  Kb8 {[%clk 0:00:04]} 83. Na6# {[%clk 0:00:29]} 1-0


[Site "https://www.chess.com"]

[Event "Titled Tuesday Blitz June 14 Early 2022"]
[White "Snehal, Bhosale"]
[Black "Stelmaszyk, Nico"]
[WhiteFideId "5021995"]
[BlackFideId "16200462"]
[WhiteElo "2103"]
[BlackElo "2119"]
[Result "1-0"]
[Round "11"]
[TimeControl "180+1"]
[Date "2022.06.14"]
[WhiteClock "0:00:44"]
[BlackClock "0:01:26"]

1. d4 {[%clk 0:03:00]}  d5 {[%clk 0:02:55]} 2. c4 {[%clk 0:03:01]}  e6 {[%clk 0:02:44]} 3. Nf3 {[%clk 0:02:59]}  Nf6 {[%clk 0:02:43]} 4. Nc3 {[%clk 0:02:59]}  c5 {[%clk 0:02:30]} 5. cxd5 {[%clk 0:02:54]}  cxd4 {[%clk 0:02:30]} 6. Qxd4 {[%clk 0:02:47]}  Nxd5 {[%clk 0:02:29]} 7. Nxd5 {[%clk 0:02:44]}  Qxd5 {[%clk 0:02:30]} 8. Qxd5 {[%clk 0:02:44]}  exd5 {[%clk 0:02:31]} 9. Bd2 {[%clk 0:02:39]}  Nc6 {[%clk 0:02:30]} 10. e3 {[%clk 0:02:39]}  Bg4 {[%clk 0:02:28]} 11. Be2 {[%clk 0:02:35]}  Bd6 {[%clk 0:02:26]} 12. Bc3 {[%clk 0:02:34]}  O-O {[%clk 0:02:25]} 13. Rd1 {[%clk 0:02:33]}  Be6 {[%clk 0:02:21]} 14. Nd4 {[%clk 0:02:31]}  Rac8 {[%clk 0:02:19]} 15. O-O {[%clk 0:01:59]}  b6 {[%clk 0:02:05]} 16. Nxe6 {[%clk 0:01:52]}  fxe6 {[%clk 0:02:02]} 17. e4 {[%clk 0:01:52]}  d4 {[%clk 0:01:57]} 18. Bxd4 {[%clk 0:01:52]}  Nxd4 {[%clk 0:01:58]} 19. Rxd4 {[%clk 0:01:52]}  Be5 {[%clk 0:01:58]} 20. Rd2 {[%clk 0:01:52]}  Rfd8 {[%clk 0:01:59]} 21. Rfd1 {[%clk 0:01:43]}  Rxd2 {[%clk 0:01:59]} 22. Rxd2 {[%clk 0:01:44]}  Rc1+ {[%clk 0:01:59]} 23. Bf1 {[%clk 0:01:40]}  Kf8 {[%clk 0:01:52]} 24. g3 {[%clk 0:01:39]}  Ke7 {[%clk 0:01:50]} 25. f4 {[%clk 0:01:39]}  Bd6 {[%clk 0:01:51]} 26. Kg2 {[%clk 0:01:32]}  e5 {[%clk 0:01:49]} 27. f5 {[%clk 0:01:29]}  Bc5 {[%clk 0:01:49]} 28. g4 {[%clk 0:01:25]}  Bd4 {[%clk 0:01:48]} 29. h4 {[%clk 0:01:23]}  h6 {[%clk 0:01:48]} 30. b3 {[%clk 0:01:21]}  Rc3 {[%clk 0:01:47]} 31. Bc4 {[%clk 0:01:19]}  Re3 {[%clk 0:01:47]} 32. Bd5 {[%clk 0:01:17]}  Rc3 {[%clk 0:01:47]} 33. Re2 {[%clk 0:01:10]}  Re3 {[%clk 0:01:44]} 34. Rxe3 {[%clk 0:01:08]}  Bxe3 {[%clk 0:01:45]} 35. Kf3 {[%clk 0:01:08]}  Bd2 {[%clk 0:01:45]} 36. a4 {[%clk 0:00:51]}  Bc1 {[%clk 0:01:42]} 37. Ke2 {[%clk 0:00:47]}  Bf4 {[%clk 0:01:40]} 38. Kd3 {[%clk 0:00:45]}  Kd6 {[%clk 0:01:41]} 39. Kc4 {[%clk 0:00:44]}  Bg3 {[%clk 0:01:40]} 40. g5 {[%clk 0:00:44]}  Bxh4 {[%clk 0:01:26]} 41. f6 {[%clk 0:00:44]} 1-0


[Site "https://www.chess.com"]

[Event "Titled Tuesday Blitz June 14 Early 2022"]
[White "Starozhilov, Leonid"]
[Black "Indjic, Aleksandar"]
[WhiteFideId "14106752"]
[BlackFideId "911925"]
[WhiteElo "2414"]
[BlackElo "2616"]
[Result "0-1"]
[Round "11"]
[TimeControl "180+1"]
[Date "2022.06.14"]
[WhiteClock "0:00:03"]
[BlackClock "0:00:43"]

1. Nf3 {[%clk 0:03:00]}  Nf6 {[%clk 0:02:58]} 2. c4 {[%clk 0:03:00]}  c5 {[%clk 0:02:58]} 3. g3 {[%clk 0:03:00]}  Nc6 {[%clk 0:02:57]} 4. Bg2 {[%clk 0:03:00]}  d5 {[%clk 0:02:57]} 5. cxd5 {[%clk 0:02:59]}  Nxd5 {[%clk 0:02:58]} 6. Nc3 {[%clk 0:02:59]}  Nc7 {[%clk 0:02:57]} 7. O-O {[%clk 0:02:59]}  e5 {[%clk 0:02:56]} 8. d3 {[%clk 0:02:57]}  Be7 {[%clk 0:02:54]} 9. Be3 {[%clk 0:02:56]}  Bd7 {[%clk 0:02:51]} 10. Rc1 {[%clk 0:02:55]}  O-O {[%clk 0:02:49]} 11. a3 {[%clk 0:02:54]}  b6 {[%clk 0:02:47]} 12. Nd2 {[%clk 0:02:36]}  Rc8 {[%clk 0:02:45]} 13. f4 {[%clk 0:02:33]}  exf4 {[%clk 0:02:43]} 14. gxf4 {[%clk 0:02:32]}  Kh8 {[%clk 0:02:39]} 15. Nc4 {[%clk 0:02:30]}  Nd4 {[%clk 0:02:36]} 16. Ne5 {[%clk 0:02:28]}  Be6 {[%clk 0:02:26]} 17. Nc6 {[%clk 0:02:09]}  Nxc6 {[%clk 0:02:22]} 18. Bxc6 {[%clk 0:02:10]}  Nd5 {[%clk 0:02:21]} 19. Bxd5 {[%clk 0:02:10]}  Bxd5 {[%clk 0:02:21]} 20. Nxd5 {[%clk 0:02:10]}  Qxd5 {[%clk 0:02:21]} 21. Qa4 {[%clk 0:01:56]}  f5 {[%clk 0:01:51]} 22. Qc4 {[%clk 0:01:48]}  Qb7 {[%clk 0:01:47]} 23. Rf3 {[%clk 0:01:38]}  Bf6 {[%clk 0:01:45]} 24. b4 {[%clk 0:01:30]}  b5 {[%clk 0:01:40]} 25. Qb3 {[%clk 0:01:14]}  Bd4 {[%clk 0:01:31]} 26. Bxd4 {[%clk 0:01:07]}  cxd4 {[%clk 0:01:32]} 27. Rxc8 {[%clk 0:01:05]}  Rxc8 {[%clk 0:01:33]} 28. Qe6 {[%clk 0:01:03]}  g6 {[%clk 0:01:25]} 29. Qe5+ {[%clk 0:00:59]}  Qg7 {[%clk 0:01:24]} 30. Qxb5 {[%clk 0:00:59]}  h5 {[%clk 0:01:15]} 31. Qe5 {[%clk 0:00:44]}  Rc3 {[%clk 0:01:12]} 32. Rf1 {[%clk 0:00:34]}  Rxa3 {[%clk 0:00:55]} 33. Rc1 {[%clk 0:00:34]}  Rc3 {[%clk 0:00:47]} 34. Ra1 {[%clk 0:00:29]}  Qxe5 {[%clk 0:00:46]} 35. fxe5 {[%clk 0:00:28]}  Rc7 {[%clk 0:00:47]} 36. Ra6 {[%clk 0:00:26]}  Kg7 {[%clk 0:00:47]} 37. Rd6 {[%clk 0:00:26]}  Re7 {[%clk 0:00:47]} 38. Rxd4 {[%clk 0:00:25]}  Rxe5 {[%clk 0:00:47]} 39. Rd7+ {[%clk 0:00:22]}  Kf6 {[%clk 0:00:46]} 40. Kf2 {[%clk 0:00:21]}  a5 {[%clk 0:00:46]} 41. bxa5 {[%clk 0:00:20]}  Rxa5 {[%clk 0:00:47]} 42. Kf3 {[%clk 0:00:11]}  Kg5 {[%clk 0:00:46]} 43. Rd6 {[%clk 0:00:10]}  Ra4 {[%clk 0:00:44]} 44. d4 {[%clk 0:00:10]}  Ra3+ {[%clk 0:00:43]} 45. e3 {[%clk 0:00:08]}  h4 {[%clk 0:00:43]} 46. d5 {[%clk 0:00:03]}  Ra2 {[%clk 0:00:43]} 0-1


[Site "https://www.chess.com"]

[Event "Titled Tuesday Blitz June 14 Early 2022"]
[White "Steinberg, Nitzan"]
[Black "Nakamura, Hikaru"]
[WhiteFideId "2801795"]
[BlackFideId "2016192"]
[WhiteElo "2471"]
[BlackElo "2850"]
[Result "0-1"]
[Round "11"]
[TimeControl "180+1"]
[Date "2022.06.14"]
[WhiteClock "0:00:03"]
[BlackClock "0:00:24"]

1. e4 {[%clk 0:03:00]}  g6 {[%clk 0:02:58]} 2. d4 {[%clk 0:03:01]}  Bg7 {[%clk 0:02:58]} 3. Nc3 {[%clk 0:03:01]}  a6 {[%clk 0:02:58]} 4. Nf3 {[%clk 0:03:02]}  b5 {[%clk 0:02:58]} 5. Be3 {[%clk 0:03:02]}  Bb7 {[%clk 0:02:58]} 6. Bd3 {[%clk 0:03:03]}  d6 {[%clk 0:02:58]} 7. O-O {[%clk 0:03:03]}  Nd7 {[%clk 0:02:50]} 8. a4 {[%clk 0:03:03]}  b4 {[%clk 0:02:50]} 9. Nb1 {[%clk 0:03:04]}  Ngf6 {[%clk 0:02:49]} 10. Nbd2 {[%clk 0:03:04]}  O-O {[%clk 0:02:46]} 11. a5 {[%clk 0:03:03]}  c5 {[%clk 0:02:46]} 12. c3 {[%clk 0:03:03]}  Rb8 {[%clk 0:02:29]} 13. h3 {[%clk 0:03:02]}  Ba8 {[%clk 0:02:26]} 14. Re1 {[%clk 0:02:56]}  Qc7 {[%clk 0:02:22]} 15. Bf4 {[%clk 0:02:33]}  bxc3 {[%clk 0:02:16]} 16. bxc3 {[%clk 0:02:33]}  Nh5 {[%clk 0:02:06]} 17. Bh2 {[%clk 0:02:32]}  Bh6 {[%clk 0:02:06]} 18. Bxa6 {[%clk 0:02:27]}  Rb2 {[%clk 0:01:55]} 19. Bf1 {[%clk 0:02:23]}  cxd4 {[%clk 0:01:53]} 20. cxd4 {[%clk 0:02:20]}  Qa7 {[%clk 0:01:53]} 21. Nc4 {[%clk 0:02:18]}  Rb4 {[%clk 0:01:52]} 22. g4 {[%clk 0:01:56]}  d5 {[%clk 0:01:42]} 23. exd5 {[%clk 0:01:26]}  Bxd5 {[%clk 0:01:43]} 24. Nb6 {[%clk 0:01:15]}  Nxb6 {[%clk 0:01:23]} 25. axb6 {[%clk 0:01:15]}  Qb7 {[%clk 0:01:23]} 26. Ba6 {[%clk 0:00:51]}  Qxb6 {[%clk 0:01:19]} 27. gxh5 {[%clk 0:00:48]}  Qf6 {[%clk 0:01:05]} 28. Ra3 {[%clk 0:00:39]}  Ra8 {[%clk 0:01:04]} 29. Be5 {[%clk 0:00:26]}  Qc6 {[%clk 0:00:53]} 30. Qe2 {[%clk 0:00:16]}  Bxf3 {[%clk 0:00:48]} 31. Qxf3 {[%clk 0:00:16]}  Qxf3 {[%clk 0:00:49]} 32. Rxf3 {[%clk 0:00:17]}  Rxa6 {[%clk 0:00:49]} 33. hxg6 {[%clk 0:00:15]}  hxg6 {[%clk 0:00:48]} 34. d5 {[%clk 0:00:14]}  Bf8 {[%clk 0:00:44]} 35. Rc3 {[%clk 0:00:14]}  Rb5 {[%clk 0:00:42]} 36. Rd1 {[%clk 0:00:12]}  Ra8 {[%clk 0:00:30]} 37. f4 {[%clk 0:00:11]}  f6 {[%clk 0:00:26]} 38. Bc7 {[%clk 0:00:10]}  Rc8 {[%clk 0:00:26]} 39. Kg2 {[%clk 0:00:08]}  Kf7 {[%clk 0:00:27]} 40. Kf3 {[%clk 0:00:08]}  Ke8 {[%clk 0:00:27]} 41. Ke4 {[%clk 0:00:07]}  Kd7 {[%clk 0:00:26]} 42. Rdc1 {[%clk 0:00:05]}  Bg7 {[%clk 0:00:27]} 43. Rc4 {[%clk 0:00:04]}  f5+ {[%clk 0:00:26]} 44. Kf3 {[%clk 0:00:04]}  Rxd5 {[%clk 0:00:26]} 45. Bb6 {[%clk 0:00:05]}  Rd3+ {[%clk 0:00:26]} 46. Be3 {[%clk 0:00:04]}  Rb8 {[%clk 0:00:24]} 47. Rc7+ {[%clk 0:00:04]}  Ke6 {[%clk 0:00:24]} 48. R1c6+ {[%clk 0:00:04]}  Kf7 {[%clk 0:00:24]} 49. Ke2 {[%clk 0:00:03]}  Rdb3 {[%clk 0:00:24]} 50. Bc5 {[%clk 0:00:03]}  Bf6 {[%clk 0:00:24]} 51. Rd7 {[%clk 0:00:03]}  Rxh3 {[%clk 0:00:23]} 52. Rcc7 {[%clk 0:00:03]}  Rb2+ {[%clk 0:00:23]} 53. Kd1 {[%clk 0:00:03]}  Rh1+ {[%clk 0:00:24]} 0-1


[Site "https://www.chess.com"]

[Event "Titled Tuesday Blitz June 14 Early 2022"]
[White "Tanenbaum, Zachary"]
[Black "Karacsonyi, Gellert"]
[WhiteFideId "2060850"]
[BlackFideId "764620"]
[WhiteElo "2175"]
[BlackElo "2187"]
[Result "1-0"]
[Round "11"]
[TimeControl "180+1"]
[Date "2022.06.14"]
[WhiteClock "0:00:19"]
[BlackClock "0:00:01"]

1. e4 {[%clk 0:02:59]}  c5 {[%clk 0:02:59]} 2. Nf3 {[%clk 0:03:00]}  Nc6 {[%clk 0:02:59]} 3. Nc3 {[%clk 0:03:00]}  g6 {[%clk 0:02:59]} 4. d4 {[%clk 0:03:00]}  cxd4 {[%clk 0:03:00]} 5. Nxd4 {[%clk 0:03:01]}  Bg7 {[%clk 0:03:01]} 6. Be3 {[%clk 0:03:01]}  Nf6 {[%clk 0:03:01]} 7. Bc4 {[%clk 0:03:01]}  O-O {[%clk 0:03:01]} 8. Bb3 {[%clk 0:03:02]}  Re8 {[%clk 0:03:02]} 9. O-O {[%clk 0:03:02]}  d6 {[%clk 0:03:02]} 10. h3 {[%clk 0:03:02]}  Na5 {[%clk 0:03:02]} 11. f4 {[%clk 0:03:01]}  b6 {[%clk 0:03:02]} 12. f5 {[%clk 0:02:59]}  Bb7 {[%clk 0:02:56]} 13. fxg6 {[%clk 0:02:31]}  hxg6 {[%clk 0:02:55]} 14. Ne6 {[%clk 0:02:11]}  fxe6 {[%clk 0:02:37]} 15. Bxe6+ {[%clk 0:02:12]}  Kf8 {[%clk 0:02:37]} 16. Nd5 {[%clk 0:01:56]}  Bc8 {[%clk 0:02:24]} 17. Nf4 {[%clk 0:01:55]}  Bh6 {[%clk 0:01:43]} 18. Nxg6+ {[%clk 0:01:00]}  Kg7 {[%clk 0:01:42]} 19. Bxh6+ {[%clk 0:00:57]}  Kxh6 {[%clk 0:01:35]} 20. Bf7 {[%clk 0:00:48]}  Kg7 {[%clk 0:00:53]} 21. Bxe8 {[%clk 0:00:36]}  Qxe8 {[%clk 0:00:54]} 22. e5 {[%clk 0:00:32]}  dxe5 {[%clk 0:00:39]} 23. Nxe5 {[%clk 0:00:33]}  Qb5 {[%clk 0:00:34]} 24. Qe1 {[%clk 0:00:26]}  Be6 {[%clk 0:00:19]} 25. Qg3+ {[%clk 0:00:25]}  Kf8 {[%clk 0:00:18]} 26. Rae1 {[%clk 0:00:24]}  Qc5+ {[%clk 0:00:14]} 27. Kh1 {[%clk 0:00:22]}  Qd5 {[%clk 0:00:02]} 28. Ng6+ {[%clk 0:00:20]}  Kf7 {[%clk 0:00:02]} 29. Nf4 {[%clk 0:00:21]}  Qd6 {[%clk 0:00:01]} 30. Rxe6 {[%clk 0:00:21]}  Qc5 {[%clk 0:00:01]} 31. Qg6+ {[%clk 0:00:19]}  Kf8 {[%clk 0:00:01]} 32. Rxf6+ {[%clk 0:00:19]} 1-0


[Site "https://www.chess.com"]